Cogmind - Beta 17.1 @@@ ROGUE MODE // 2026.09.18 @ 15:37:08 Player: 4R-ZE3 Result: Self-destructed Performance ------------- Evolutions (2) 1000 Regions Visited (3) 600 Robots Destroyed (27) 135 Value Destroyed (576) 576 Prototype IDs (15) 300 Alien Tech Used (0) 0 Bonus (165) 165 TOTAL SCORE: 2776 Bonus ------- Follower Combat Kills 165 Cogmind --------- Core Integrity 550/550 Matter 250/300 Energy 125/125 System Corruption 0% Temperature Cool (0) Movement Treading (245) Ox1 Location -8/Materials Parts ------- > --- POWER (1+1) ------ Light Ion Engine > --- PROPULSION (4+2) - Light Treads (+) Light Treads Light Treads Spiked Treads (+) > --- UTILITY (3+2) ---- Huge Storage Unit Tower Shield > --- WEAPON (3+2) ----- Subdweller Laser Subdweller Machine Gun Subdweller Machine Gun > --- INVENTORY (25) --- Ion Engine Light Ion Engine Subdweller Power Source Subdweller Power Source Light Treads Wheel Compact Wheel Heat Sink Heat Sink Signal Interpreter Seismic Detector V3-11A's Pendant Assault Rifle Assault Rifle Subdweller Machine Gun Subdweller Machine Gun Heavy Battle Rifle Flak Cannon Grenade Launcher Grenade Launcher Peak State ------------ > --- POWER ------------ Light Ion Engine > --- PROPULSION ------- Light Treads Light Treads Light Treads Spiked Treads > --- UTILITY ---------- Huge Storage Unit Tower Shield > --- WEAPON ----------- Subdweller Laser Subdweller Machine Gun Subdweller Machine Gun > --- INVENTORY -------- Ion Engine Light Ion Engine Subdweller Power Source Subdweller Power Source Light Treads Wheel Compact Wheel Heat Sink Heat Sink Signal Interpreter Seismic Detector V3-11A's Pendant Assault Rifle Assault Rifle Subdweller Machine Gun Subdweller Machine Gun Heavy Battle Rifle Flak Cannon Grenade Launcher Grenade Launcher [Rating: 36] Favorites ----------- Power Light Ion Engine Engine Light Ion Engine Propulsion Light Treads Treads Light Treads Leg Aluminum Leg Utility V3-11A's Pendant Device V3-11A's Pendant Storage Huge Storage Unit Protection Tower Shield Weapon Subdweller Machine Gun Energy Gun Subdweller Laser Ballistic Gun Subdweller Machine Gun Special Weapon Mining Laser Slashing Weapon Makeshift Sword Build | -11 -10 -10 -8 ------- Run | Yrd Mat Sub Mat Slots Evolved 4 | . . . 4 Power . | . . . . Propulsion 2 | . . . 2 Utility 1 | . . . 1 Weapon 1 | . . . 1 Parts Attached 16 | 2 5 5 4 Power . | . . . . Engine . | . . . . Core . | . . . . Reactor . | . . . . Propulsion 4 | 2 . . 2 Treads 4 | 2 . . 2 Leg . | . . . . Wheel . | . . . . Hover . | . . . . Flight . | . . . . Utility 5 | . 2 2 1 Device 2 | . 1 1 . Storage 2 | . 1 1 . Processor . | . . . . Hackware . | . . . . Protection 1 | . . . 1 Artifact . | . . . . Weapon 7 | . 3 3 1 Energy Gun 1 | . . 1 . Energy Cannon . | . . . . Ballistic Gun 4 | . 2 1 1 Ballistic Cannon . | . . . . Launcher . | . . . . Special Weapon 1 | . 1 . . Impact Weapon . | . . . . Slashing Weapon 1 | . . 1 . Piercing Weapon . | . . . . Special Melee Weapon . | . . . . Unidentified Prototypes 1 | . . 1 . Parts Lost 2 | . 1 1 . Power . | . . . . Propulsion . | . . . . Utility . | . . . . Weapon 2 | . 1 1 . Highest Loss Streak 1 | . 1 1 . To Critical Strikes . | . . . . Average Backups 19 | 6 12 21 20 Power 3 | 1 1 3 4 Propulsion 4 | 4 3 4 3 Utility 4 | . 2 4 5 Weapon 7 | 1 4 8 7 Tool/Special . | . . . . Unused Backups 16 | . . 3 13 Power 3 | . . . 3 Propulsion 1 | . . . 1 Utility 3 | . . . 3 Weapon 9 | . . 3 6 Tool/Special . | . . . . Average Slot Usage (%) 99 | . 99 100 54 Engine 13 | . 14 14 5 Treads 27 | . 28 28 21 Device 13 | . 13 14 . Storage 13 | . 14 14 5 Ballistic Gun 19 | . 27 16 10 Slashing Weapon 7 | . . 11 . Peak Build Rating 36 | 6 8 18 36 Average Rating 13 | 6 7 16 35 On Entrance 9 | 6 6 8 16 Avg Prop Armor Cover (%) . | . . . . Naked Turns . | . . . . Heaviest Build 133 | 12 52 92 133 Greatest Support 80 | 40 40 40 80 Greatest Overweight (x) 2 | . 1 2 1 Average Overweight (x) 1 | . . 1 1 Largest Inventory Capacity 25 | 8 20 25 25 Average Capacity 23 | 8 19 24 25 Most Carried 24 | 6 17 24 24 Average Carried 19 | 5 12 22 19 Final Capacity 25 | 8 20 25 25 Final Carried 23 | 4 17 23 20 Class Distribution -------------------- 99% | Mutant Dominant Class ---------------- Mutant | -10/Materials Mutant | -10/Subcaves Gunner | -8/Materials Resources | -11 -10 -10 -8 ----------- Run | Yrd Mat Sub Mat Matter Collected 697 | 218 403 76 . Remotely . | . . . . Salvage Created 1009 | . 771 238 . Parts 70 | . 53 17 . Haulers Intercepted 2 | . 2 . . Recyclers Shooed . | . . . . Parts Field Recycled . | . . . . Retrieved Matter . | . . . . Parts Self-Destructed 19 | . . 19 . Prevented . | . . . . Parts Restored . | . . . . Kills | -11 -10 -10 -8 ------- Run | Yrd Mat Sub Mat Combat Hostiles Destroyed 20 | . 17 3 . Guns 20 | . 17 3 . Classes Destroyed 7 | . 6 1 . Worker 3 | . 3 . . Hauler 2 | . 2 . . Recycler 1 | . 1 . . Operator 1 | . 1 . . Swarmer 7 | . 6 1 . Grunt 11 | . 11 . . Subdweller 2 | . . 2 . Best Kill Streak 5 | . 5 2 . Combat Bots Only 3 | . 3 2 . Max Kills in Single Turn 1 | . 1 1 . Gunslinging . | . . . . Exploded . | . . . . Melee . | . . . . Uniques/NPCs Destroyed . | . . . . Combat | -11 -10 -10 -8 -------- Run | Yrd Mat Sub Mat Hostile Shots Fired 93 | . 59 34 . Missed 28 | . 18 10 . Hits 65 | . 41 24 . Projectile 65 | . 41 24 . Critical Strikes 1 | . 1 . . Damage Taken 818 | . 445 373 . Core 230 | . 80 150 . Absorbed by Shields . | . . . . Core Remaining (%) 54 | 100 . 8 . Volleys Fired 68 | . 60 8 . Largest 2 | . 2 2 . Hottest 100 | . 100 40 . Shots Fired 131 | . 118 13 . Gun 130 | . 117 13 . Cannon . | . . . . Launcher . | . . . . Special 1 | . 1 . . Kinetic 130 | . 117 13 . Thermal 1 | . 1 . . Explosive . | . . . . Electromagnetic . | . . . . Robot Hit Streak 19 | . 19 13 . Robot Miss Streak 5 | . 5 2 . Penetration Max . | . . . . Secondary Targets 3 | . 2 1 . Max Gunslinging Chain 1 | . 1 1 . Shots Hit Robots 93 | . 71 22 . Core Hits 47 | . 38 9 . Critical Kills 1 | . 1 . . Critical Parts Destroyed . | . . . . Critical Strikes 1 | . 1 . . Destroy 1 | . 1 . . Melee Attacks 37 | . . 37 . Impact . | . . . . Slashing 37 | . . 37 . Piercing . | . . . . Sneak Attacks . | . . . . Combat Hostiles . | . . . . Follow-up Attacks . | . . . . Damage Inflicted 1808 | . 877 931 . Guns 1022 | . 877 145 . Cannons . | . . . . Explosions . | . . . . Melee 786 | . . 786 . Ramming . | . . . . Kinetic 1022 | . 877 145 . Thermal . | . . . . Explosive . | . . . . Electromagnetic . | . . . . Impact . | . . . . Slashing 786 | . . 786 . Piercing . | . . . . Highest Corruption . | . . . . Average Corruption . | . . . . Corruption Purged . | . . . . Corruption Blocked . | . . . . Overload Shots . | . . . . Overflow Damage . | . . . . Projectiles . | . . . . Explosions . | . . . . Melee . | . . . . Knockbacks . | . . . . Impact . | . . . . Kinetic . | . . . . Secondary . | . . . . Self-Inflicted Damage . | . . . . Shots . | . . . . Rammed . | . . . . Targets Rammed . | . . . . Kicked . | . . . . Crushed . | . . . . Highest Temperature 20 | . 20 . . Average Temperature 7 | . 7 . . Received Heat Transfer 240 | . 195 45 . Siege Activations . | . . . . Martial Activations . | . . . . Shielding Activations . | . . . . Robots Disrupted . | . . . . Combat Hostiles . | . . . . Robots Corrupted . | . . . . Combat Hostiles . | . . . . Parts Fried . | . . . . Impact Corruptions . | . . . . Robots Melted . | . . . . Combat Hostiles . | . . . . Parts Melted 1 | . . 1 . Heat Transferred . | . . . . Parts Sabotaged . | . . . . Parts Stolen . | . . . . Parts Stripped . | . . . . Power Chain Reactions . | . . . . Alert | -11 -10 -10 -8 ------- Run | Yrd Mat Sub Mat Maximum Alert Level . | . . . . Low Security (%) 100 | 100 100 . 100 Level 1 . | . . . . Level 2 . | . . . . Level 3 . | . . . . Level 4 . | . . . . Level 5 . | . . . . High Security . | . . . . Max Security . | . . . . Peak Influence 138 | . 138 . 76 Initial 76 | . . . 76 Average 61 | . 61 . 71 Influence Increases 766 | . 557 199 10 Destroy 0b10 Robot/C 500 | . 340 160 . Destroy 0b10 Robot/NC 40 | . 35 . 5 Destroy Leader 94 | . 84 10 . Allied During Kill 29 | . . 29 . Successful Hack 10 | . 5 . 5 Select Force Hacks 60 | . 60 . . Disable Machine 15 | . 15 . . Destroy Structure 3 | . 3 . . Lose Combat Pursuer 15 | . 15 . . Influence Decreases 700 | . 474 135 91 Entered New Map 112 | . . 41 71 Time Decay 567 | . 464 83 20 Lost Part 20 | . 10 10 . Lost Ally 1 | . . 1 . Squads Dispatched 5 | . 5 . . Investigation 3 | . 3 . . Extermination . | . . . . Reinforcement 2 | . 2 . . Assault . | . . . . Garrison . | . . . . Intercept . | . . . . Searches Triggered . | . . . . Construction Impeded . | . . . . Haulers Reinforced . | . . . . Active Scanning Responses . | . . . . Cargo Convoy Interrupts . | . . . . Stealth | -11 -10 -10 -8 --------- Run | Yrd Mat Sub Mat Distress Signals 2 | . 2 . . Communications Jammed . | . . . . Distress Signals . | . . . . Times Spotted 44 | . 28 15 1 Peak Tracking Total 4 | . 4 4 1 Tactical Retreats 1 | . 1 . . Traps | -11 -10 -10 -8 ------- Run | Yrd Mat Sub Mat Traps Triggered 1 | . 1 . . Indirectly . | . . . . Trap Hack Attempts . | . . . . Triggered . | . . . . Disarmed . | . . . . Reprogrammed . | . . . . Reused . | . . . . Traps Extracted . | . . . . Installed . | . . . . Triggered . | . . . . Machines | -11 -10 -10 -8 ---------- Run | Yrd Mat Sub Mat Machines Disabled 2 | . 1 1 . Max in Single Turn 1 | . 1 1 . Machines Repaired . | . . . . Machines Dismantled . | . . . . Machines Sabotaged . | . . . . Overloaded Fab Kills . | . . . . Hacking | -11 -10 -10 -8 --------- Run | Yrd Mat Sub Mat Machines Accessed 9 | . 5 2 2 Terminals 5 | . 3 . 2 Fabricators . | . . . . Repair Stations . | . . . . Recycling Units 2 | . 2 . . Scanalyzers . | . . . . Garrison Access . | . . . . Total Hacks 20 | . 11 5 4 Successful 11 | . 4 5 2 Failed 9 | . 7 . 2 Catastrophic 1 | . . . 1 Database Lockouts . | . . . . Manual 14 | . 11 . 3 Terminals 13 | . 9 . 4 Fabricators . | . . . . Repair Stations . | . . . . Recycling Units 2 | . 2 . . Scanalyzers . | . . . . Garrison Access . | . . . . Terminal Hacks 7 | . 1 5 1 Record 4 | . . 4 . Robot Analysis 1 | . 1 . . Branch Access Points 1 | . . . 1 Proto ID Catalog 1 | . . 1 . Fabricator Hacks . | . . . . Repair Station Hacks . | . . . . Recycling Unit Hacks . | . . . . Scanalyzer . | . . . . Garrison Access Hacks . | . . . . Unauthorized Hacks 4 | . 3 . 1 Terminals 2 | . 1 . 1 Botnet 2 | . 1 . 1 Fabricators . | . . . . Repair Stations . | . . . . Recycling Units 2 | . 2 . . Tunnel 2 | . 2 . . Scanalyzers . | . . . . Garrison Access . | . . . . Data Cores Recovered 1 | . . . 1 Used 1 | . . . 1 Hacking Detections 4 | . 3 . 1 Full Trace Events . | . . . . Feedback Events . | . . . . Feedback Blocked . | . . . . Robot Schematics Acquired . | . . . . Robots Built . | . . . . Authchips . | . . . . Time . | . . . . Total Robot Build Rating . | . . . . Part Schematics Acquired . | . . . . Parts Built . | . . . . Authchips . | . . . . Time . | . . . . Total Part Build Rating . | . . . . Part Studies Acquired . | . . . . Parts Repaired . | . . . . Time . | . . . . Parts Recycled . | . . . . Recycled Matter . | . . . . Retrieved Matter . | . . . . Retrieved Components . | . . . . Parts Scanalyzed . | . . . . Part Schematics Acquired . | . . . . Parts Damaged . | . . . . Bothacking | -11 -10 -10 -8 ------------ Run | Yrd Mat Sub Mat Used RIF Installer . | . . . . Robots Hacked . | . . . . Non-combat . | . . . . Combat . | . . . . Robot Hacks Applied . | . . . . Relay Couplers Released . | . . . . Fabnet Peak Effective % . | . . . . Robots Rewired . | . . . . Allies Hacked . | . . . . Hacks Repelled . | . . . . Allies | -11 -10 -10 -8 -------- Run | Yrd Mat Sub Mat Total Allies 8 | . . 8 . Largest Group 5 | . . 5 3 Highest-Rated Group 95 | . . 95 57 Highest-Rated Ally 19 | . . 19 19 Total Orders . | . . . . Ally Attacks 49 | . . 47 2 Total Damage 791 | . . 769 22 Kills 11 | . . 10 1 Allies Corrupted . | . . . . Allies Melted . | . . . . Intel | -11 -10 -10 -8 ------- Run | Yrd Mat Sub Mat Active Infowar (turns) 2025 | . 1715 310 . Seismic 2025 | . 1715 310 . Robot Analysis Total 1 | . 1 . . Derelict Logs Recovered 1 | . . 1 . Drone Launches . | . . . . Drone Recoveries . | . . . . Exploration | -11 -10 -10 -8 ------------- Run | Yrd Mat Sub Mat Turns Passed 6364 | 6 1754 4551 53 Spaces Moved 2072 | 2 606 1445 19 Core . | . . . . Treads 2072 | 2 606 1445 19 Legs . | . . . . Wheels . | . . . . Hover . | . . . . Flight . | . . . . Fastest Speed 160 | 160 160 240 245 Average Speed 284 | 160 238 304 245 Slowest Speed 320 | 160 240 320 245 Overloaded Moves . | . . . . Propulsion Burnouts . | . . . . Robots Hopped . | . . . . Potential Cave-ins . | . . . . Cave-ins Triggered . | . . . . Exploration Rate (%) 43 | 2 80 86 5 Regions Visited 3 Branch Regions 1 Pre-discovered Areas 5 | . 2 3 . Known Exits Taken . | . . . . Unknown Exits Taken 3 | 1 1 1 . Scrap Searched 4 | . . 4 . Spaces Dug 1 | . . 1 . Terrain Destroyed 1 | . . 1 . Melee 1 | . . 1 . Projectile . | . . . . AOE . | . . . . Terrain Rammed . | . . . . Walls Destroyed . | . . . . Machines Disabled . | . . . . Actions | -11 -10 -10 -8 --------- Run | Yrd Mat Sub Mat Total 2368 | 5 796 1542 25 Wait 140 | . 111 29 . Move 2069 | 1 605 1444 19 Hop . | . . . . Pick Up 27 | . 14 12 1 Fast Attach 3 | . 2 1 . Attach 6 | . 1 1 4 Detach 1 | . . . 1 Swap 7 | 2 2 3 . Drop 10 | 2 1 7 . Fire 68 | . 60 8 . Melee 37 | . . 37 . Ram . | . . . . Kick . | . . . . Crush . | . . . . Escape Stasis . | . . . . Rewire . | . . . . Trap . | . . . . Miscellaneous . | . . . . Route ------- -11/Scrapyard -10/Materials (discovered 4 exits: [*Mat x2] / [*Min] / *Sub) -10/Subcaves (discovered 2 exits: *Mat x2) -8/Materials History --------- Turn | Location | Event 6 | -11/Scrapyard | Discovered new exit (range 1) 7 | -11/Scrapyard | Entered Materials 314 | -10/Materials | Build established: Mutant 444 | -10/Materials | Discovered new exit (range 15) 1088 | -10/Materials | Discovered new exit (range 16) 1442 | -10/Materials | Discovered new exit (range 15) 1747 | -10/Materials | Discovered new exit (range 7) 1761 | -10/Materials | Entered Subcaves 1762 | -10/Subcaves | Approached by a straggling Scientist 1817 | -10/Subcaves | Core integrity fell below 50% 2057 | -10/Subcaves | Visited triangular shrine 2072 | -10/Subcaves | Found Prototype Device 2072 | -10/Subcaves | Identified V3-11A's Pendant 2077 | -10/Subcaves | Befriended Subdweller 2137 | -10/Subcaves | Befriended Subdweller 2157 | -10/Subcaves | Befriended Subdweller 2336 | -10/Subcaves | Disturbed a concealed Subdweller 2406 | -10/Subcaves | Shifting Twisted Machinery released Spk. Treads 2443 | -10/Subcaves | Shifting Twisted Machinery released Hvy. Battle Rifle 2604 | -10/Subcaves | Shifting Twisted Machinery released Sub. Machine Gun 2857 | -10/Subcaves | Shifting Twisted Machinery released Battle Cannon 3230 | -10/Subcaves | Visited 4L-MR0's lab 3256 | -10/Subcaves | Found Tower Shield 3348 | -10/Subcaves | Learned location of Zion (-6) 3348 | -10/Subcaves | Met a Zionite searching for "candidates" 3443 | -10/Subcaves | Shifting Twisted Machinery released Sub. Laser 3494 | -10/Subcaves | A swath of the cavern ceiling suddenly collapsed 3522 | -10/Subcaves | Befriended Subdweller 3522 | -10/Subcaves | Befriended Subdweller 3717 | -10/Subcaves | Befriended Subdweller 3720 | -10/Subcaves | A swath of the cavern ceiling suddenly collapsed 3767 | -10/Subcaves | Befriended Subdweller 3787 | -10/Subcaves | Befriended Subdweller 4111 | -10/Subcaves | Curiously followed by a Cobbler waking with a query about "LVR3C" 4591 | -10/Subcaves | Shifting Twisted Machinery released Sub. Shrapnel Launcher 5138 | -10/Subcaves | Visited Clippyterm 5148 | -10/Subcaves | Learned location of Section 7 (-2) 5148 | -10/Subcaves | Learned Factory fabricator intel 6063 | -10/Subcaves | Core integrity fell below 20% 6245 | -10/Subcaves | Discovered new exit (range 15) 6270 | -10/Subcaves | Discovered new exit (range 12) 6312 | -10/Subcaves | Entered Materials 6312 | -8/Materials | Accompanied by 3 allies 6312 | -8/Materials | Evolved 4 slots: Propulsion x2, Utility x1, Weapon x1 6314 | -8/Materials | Attached Tower Shield, gained temporary slots: Power, Propulsion x2, Utility x2, Weapon x2 6365 | -8/Materials | Self-destructed Last Messages --------------- slot. 06314_ Core temporarily expanded with Utility slot. 06314_ Core temporarily expanded with Weapon slot. 06332_ Acquired Flak Cannon. 06335_ Connecting with Terminal... 06335_ Current location identified: Materials >>Trojan(Botnet) Trojan loaded successfully. Testing... Terminal linked with 0 systems. Awaiting botnet instructions. 06343_ O-16 Technician: "IFF HANDSHAKE FAILED. SECURING TERMINAL." 06350_ Acquired data core, extracted dynamic key. 06365_ Connecting with Terminal... >>Access(Branch) No branch access points found. Map ----- +----------------------------------------------------+ | ?????????????????????????????????????????????????? | | ?????????????????????????????????????????????????? | | ?????????????????????????????????????????????????? | | ?????????????????????????????????????????????????? | | ?????????????????????????????????????????????????? | | ?????????????????????????????????????????????????? | | ?????????????????????????????????????????????????? | | ?????????????????????????????????????????????????? | | ?????????????????????????????????????????????????? | | ?????????????????????????????????????????????????? | | ?????????????????????????????????????????????????? | | ?????????????????????#???????????????????????????? | | ?????????????????????# ????? ???????????????????? | | ?????????????????????# ????" ???????????????????? | | ?????????????????????# ???" #??????????????????? | | ?????????????????????# ??? #??????????????????? | | ?????????????????????# #??????????????????? | | ?????????????????????# """" #???? ?????????????? | | ?????????????????????# """" #???? #????????????? | | ?????????????????????# """" #???? #????????????? | | ?????????????????????# #???? #????????????? | | ?????????????????????# #???? #????????????? | | ?????????????????????# #???? #????????????? | | ?????????????????????# "" ##### ##???????????? | | ?????????????????????# T" ## #???????????? | | ?????????????????????# @""R #???????????? | | ?????????????????????# RR T #???????????? | | ?????????????????????# #???????????? | | ?????????????????????########+## #???????????? | | ??????????????????????# * % ## ##???????????? | | ??????????????????????# """/ ## #????????????? | | ??????????????????????# """ [## #????????????? | | ??????????????????????# """ ## #????????????? | | ??????????????????????# ## #????????????? | | ??????????????????????# """ ######????????????? | | ??????????????????????? """ #?????????????????? | | ?????????????????????????""" #?????????????????? | | ?????????????????????????? #?????????????????? | | ???????????????????????????#####?????????????????? | | ?????????????????????????????????????????????????? | | ?????????????????????????????????????????????????? | | ?????????????????????????????????????????????????? | | | | | | | | | | | | | | | | | +----------------------------------------------------+ Best States ------------- Heat Dissipation 31 Energy Generation 10 Energy Capacity 125 Matter Stores 300 Matter Capacity 300 Sight Range 16 Terrain Scan Density 10 Armor Coverage 2000 Evasion (%) 40 Recoil Reduction 4 Item Schematics ----------------- None Robot Schematics ------------------ None Fabricated ------------ Nothing Repaired ---------- Nothing Studied --------- None Alien Tech Used ----------------- None Achievements -------------- None Challenges ------------ None Game ------ Seed SplicePowerObliterator Manual? 0 Play Time 00:15:00 Cumulative 425.5 hours Start 2026.09.18 @ 15:22:08 End 2026.09.18 @ 15:37:08 Sessions 1 Manual Loads 0 Difficulty Rogue Special Mode None Game No. 377 Rogue 323 Adventurer 54 Explorer 0 Win Type - Total 25 Types 15/2/1/1/1/1/1/1/1/1 Lore% 83 Gallery% 72 Achievement% 72 Wizard Run 0 Options --------- Layout 1 ASCII 0 Keyboard 0 Movement Mouse Keybinds 1 Fullscreen 2 Font 32/Tamsyn Map View 50x35 Zoom Use 0% Tactical HUD 1 Map Filters NONE Filters NONE Steam 1 RUN: f1ae1adc-520a-43f4-ba46-d3f233b5b196